Cogmind - Beta 16 @@@ ROGUE MODE // 2026.02.05 @ 01:10:59 Player: Megaknight51 Result: Destroyed by D-53 Grenadier with Mini Grenade Launcher Performance ------------- Evolutions (0) 0 Regions Visited (2) 400 Robots Destroyed (17) 85 Value Destroyed (222) 222 Prototype IDs (2) 40 Alien Tech Used (0) 0 Bonus (0) 0 TOTAL SCORE: 747 Bonus ------- None Cogmind --------- Core Integrity 0/250 Matter 276/300 Energy 99/100 System Corruption 0% Temperature Cool (0) Movement Core (50) Location -10/Mines Parts ------- > --- POWER (1) -------- (None) > --- PROPULSION (2) --- (None) > --- UTILITY (2) ------ (None) > --- WEAPON (2) ------- (None) > --- INVENTORY (5) ---- Machine Analyzer Signal Interpreter Terrain Scan Processor Light Armor Plating Light Armor Plating Peak State ------------ > --- POWER ------------ Light Ion Engine > --- PROPULSION ------- Light Treads Light Treads > --- UTILITY ---------- High-capacity Storage Unit Seismic Detector > --- WEAPON ----------- Assault Rifle Assault Rifle > --- INVENTORY -------- Large Matter Pod High-capacity Matter Pod High-capacity Matter Pod Structural Scanner Machine Analyzer Sensor Array Signal Interpreter Improved Terrain Scanner Terrain Scan Processor Light Armor Plating Light Armor Plating Light Armor Plating Hardened Light Armor Plating Hardened Light Armor Plating [Rating: 9] Favorites ----------- Power Light Ion Engine Engine Light Ion Engine Propulsion Light Treads Treads Light Treads Utility Seismic Detector Device Seismic Detector Storage Small Storage Unit Weapon Assault Rifle Ballistic Gun Assault Rifle Build | -11 -10 -10 ------- Run | Yrd Mat Min Slots Evolved . | . . . Power . | . . . Propulsion . | . . . Utility . | . . . Weapon . | . . . Parts Attached 11 | 8 3 . Power 1 | 1 . . Engine 1 | 1 . . Core . | . . . Reactor . | . . . Propulsion 2 | 2 . . Treads 2 | 2 . . Leg . | . . . Wheel . | . . . Hover . | . . . Flight . | . . . Utility 4 | 3 1 . Device 2 | 2 . . Storage 2 | 1 1 . Processor . | . . . Hackware . | . . . Protection . | . . . Artifact . | . . . Weapon 4 | 2 2 . Energy Gun . | . . . Energy Cannon . | . . . Ballistic Gun 4 | 2 2 . Ballistic Cannon . | . . . Launcher . | . . . Special Weapon . | . . . Impact Weapon . | . . . Slashing Weapon . | . . . Piercing Weapon . | . . . Special Melee Weapon . | . . . Unidentified Prototypes . | . . . Parts Lost 2 | . . 2 Power . | . . . Propulsion . | . . . Utility 1 | . . 1 Weapon 1 | . . 1 Highest Loss Streak 2 | . . 2 To Critical Strikes . | . . . Average Backups 8 | 1 8 15 Power . | . . . Propulsion . | . . . Utility 7 | . 8 13 Weapon . | . . 1 Tool/Special . | . . . Unused Backups 19 | . 3 16 Power 1 | . 1 . Propulsion . | . . . Utility 17 | . 1 16 Weapon 1 | . 1 . Tool/Special . | . . . Average Slot Usage (%) 98 | . 100 66 Engine 13 | . 14 9 Treads 27 | . 28 18 Device 13 | . 14 9 Storage 13 | . 14 9 Ballistic Gun 27 | . 28 18 Peak Build Rating 9 | 7 9 9 Average Rating 7 | 5 8 5 On Entrance 5 | . 7 9 Avg Prop Armor Cover (%) . | . . . Naked Turns 21 | . . 21 Heaviest Build 48 | 12 48 48 Greatest Support 40 | 40 40 40 Greatest Overweight (x) 1 | . 1 1 Average Overweight (x) . | . . . Largest Inventory Capacity 20 | 8 20 20 Average Capacity 11 | 7 11 13 Most Carried 18 | 3 18 18 Average Carried 8 | 1 8 12 Final Capacity 20 | 8 20 5 Final Carried 18 | 3 18 5 Class Distribution -------------------- 100% | Mutant Dominant Class ---------------- Mutant | -10/Materials Mutant | -10/Mines Resources | -11 -10 -10 ----------- Run | Yrd Mat Min Matter Collected 694 | 296 398 . Remotely 10 | 10 . . Salvage Created 491 | 133 358 . Parts 33 | 9 24 . Haulers Intercepted 1 | . 1 . Recyclers Shooed 1 | . 1 . Parts Field Recycled . | . . . Retrieved Matter . | . . . Parts Self-Destructed . | . . . Prevented . | . . . Parts Restored . | . . . Kills | -11 -10 -10 ------- Run | Yrd Mat Min Combat Hostiles Destroyed 11 | . 11 . Guns 11 | . 11 . Classes Destroyed 7 | 2 5 . Builder 1 | . 1 . Tunneler 2 | 2 . . Hauler 1 | . 1 . Recycler 1 | 1 . . Mechanic 1 | . 1 . Swarmer 8 | . 8 . Grunt 3 | . 3 . Best Kill Streak 3 | 3 3 . Combat Bots Only 3 | . 3 . Max Kills in Single Turn 2 | 1 2 . Gunslinging . | . . . Exploded . | . . . Melee . | . . . Uniques/NPCs Destroyed . | . . . Combat | -11 -10 -10 -------- Run | Yrd Mat Min Hostile Shots Fired 66 | . 56 10 Missed 13 | . 12 1 Hits 53 | . 44 9 Projectile 53 | . 44 9 AOE 9 | . . 9 Damage Taken 755 | . 392 363 Core 262 | . 101 161 Absorbed by Shields . | . . . Core Remaining (%) 100 | 100 . . Volleys Fired 33 | 4 29 . Largest 2 | 2 2 . Hottest 40 | 40 40 . Shots Fired 66 | 8 58 . Gun 66 | 8 58 . Cannon . | . . . Launcher . | . . . Special . | . . . Kinetic 66 | 8 58 . Thermal . | . . . Explosive . | . . . Electromagnetic . | . . . Robot Hit Streak 8 | 7 8 . Robot Miss Streak 4 | . 4 . Penetration Max . | . . . Secondary Targets 1 | . 1 . Max Gunslinging Chain 1 | . 1 . Shots Hit Robots 43 | 7 36 . Core Hits 23 | 5 18 . Critical Kills . | . . . Critical Parts Destroyed . | . . . Critical Strikes . | . . . Melee Attacks . | . . . Impact . | . . . Slashing . | . . . Piercing . | . . . Sneak Attacks . | . . . Combat Hostiles . | . . . Follow-up Attacks . | . . . Damage Inflicted 460 | 69 391 . Guns 460 | 69 391 . Cannons . | . . . Explosions . | . . . Melee . | . . . Ramming . | . . . Kinetic 460 | 69 391 . Thermal . | . . . Explosive . | . . . Electromagnetic . | . . . Impact . | . . . Slashing . | . . . Piercing . | . . . Highest Corruption . | . . . Average Corruption . | . . . Corruption Purged . | . . . Corruption Blocked . | . . . Overload Shots . | . . . Overflow Damage . | . . . Projectiles . | . . . Explosions . | . . . Melee . | . . . Knockbacks . | . . . Impact . | . . . Kinetic . | . . . Secondary . | . . . Self-Inflicted Damage . | . . . Shots . | . . . Rammed 1 | . 1 . Targets Rammed 1 | . 1 . Kicked . | . . . Crushed . | . . . Highest Temperature 12 | . 12 . Average Temperature 6 | . 6 . Received Heat Transfer 84 | . 84 . Siege Activations . | . . . Martial Activations . | . . . Shielding Activations . | . . . Robots Disrupted . | . . . Combat Hostiles . | . . . Robots Corrupted . | . . . Combat Hostiles . | . . . Parts Fried . | . . . Impact Corruptions . | . . . Robots Melted . | . . . Combat Hostiles . | . . . Parts Melted . | . . . Heat Transferred . | . . . Parts Sabotaged . | . . . Parts Stolen . | . . . Parts Stripped . | . . . Power Chain Reactions . | . . . Alert | -11 -10 -10 ------- Run | Yrd Mat Min Maximum Alert Level . | . . . Low Security (%) 100 | 100 100 100 Level 1 . | . . . Level 2 . | . . . Level 3 . | . . . Level 4 . | . . . Level 5 . | . . . High Security . | . . . Max Security . | . . . Peak Influence 164 | 15 164 . Initial . | . . . Average 38 | 1 41 . Influence Increases 344 | 15 329 . Destroy 0b10 Robot/C 220 | . 220 . Destroy 0b10 Robot/NC 30 | 15 15 . Destroy Leader 52 | . 52 . Successful Hack 12 | . 12 . Lose Combat Pursuer 30 | . 30 . Influence Decreases 344 | 15 327 2 Entered New Map 2 | . . 2 Time Decay 342 | 15 327 . Squads Dispatched 2 | . 2 . Investigation 1 | . 1 . Extermination . | . . . Reinforcement 1 | . 1 . Assault . | . . . Garrison . | . . . Intercept . | . . . Searches Triggered . | . . . Construction Impeded . | . . . Haulers Reinforced . | . . . Active Scanning Responses . | . . . Cargo Convoy Interrupts . | . . . Stealth | -11 -10 -10 --------- Run | Yrd Mat Min Distress Signals . | . . . Communications Jammed . | . . . Distress Signals . | . . . Times Spotted 25 | . 23 2 Peak Tracking Total 5 | . 5 5 Tactical Retreats 1 | . 1 . Traps | -11 -10 -10 ------- Run | Yrd Mat Min Traps Triggered 1 | . 1 . Indirectly . | . . . Trap Hack Attempts . | . . . Triggered . | . . . Disarmed . | . . . Reprogrammed . | . . . Reused . | . . . Traps Extracted . | . . . Installed . | . . . Triggered . | . . . Machines | -11 -10 -10 ---------- Run | Yrd Mat Min Machines Disabled . | . . . Max in Single Turn . | . . . Machines Repaired . | . . . Machines Dismantled . | . . . Machines Sabotaged . | . . . Overloaded Fab Kills . | . . . Hacking | -11 -10 -10 --------- Run | Yrd Mat Min Machines Accessed 5 | . 5 . Terminals 5 | . 5 . Fabricators . | . . . Repair Stations . | . . . Recycling Units . | . . . Scanalyzers . | . . . Garrison Access . | . . . Total Hacks 11 | . 11 . Successful 4 | . 4 . Failed 7 | . 7 . Catastrophic 3 | . 3 . Database Lockouts . | . . . Manual 6 | . 6 . Terminals 11 | . 11 . Fabricators . | . . . Repair Stations . | . . . Recycling Units . | . . . Scanalyzers . | . . . Garrison Access . | . . . Terminal Hacks 4 | . 4 . Prototype ID Bank 1 | . 1 . Branch Access Points 1 | . 1 . Terminal Index 1 | . 1 . Hauler Manifests 1 | . 1 . Fabricator Hacks . | . . . Repair Station Hacks . | . . . Recycling Unit Hacks . | . . . Scanalyzer . | . . . Garrison Access Hacks . | . . . Unauthorized Hacks . | . . . Terminals . | . . . Fabricators . | . . . Repair Stations . | . . . Recycling Units . | . . . Scanalyzers . | . . . Garrison Access . | . . . Data Cores Recovered . | . . . Used . | . . . Hacking Detections 4 | . 4 . Full Trace Events . | . . . Feedback Events . | . . . Feedback Blocked . | . . . Robot Schematics Acquired . | . . . Robots Built . | . . . Authchips . | . . . Time . | . . . Total Robot Build Rating . | . . . Part Schematics Acquired . | . . . Parts Built . | . . . Authchips . | . . . Time . | . . . Total Part Build Rating . | . . . Part Studies Acquired . | . . . Parts Repaired . | . . . Time . | . . . Parts Recycled . | . . . Recycled Matter . | . . . Retrieved Matter . | . . . Retrieved Components . | . . . Parts Scanalyzed . | . . . Part Schematics Acquired . | . . . Parts Damaged . | . . . Bothacking | -11 -10 -10 ------------ Run | Yrd Mat Min Used RIF Installer . | . . . Robots Hacked . | . . . Non-combat . | . . . Combat . | . . . Robot Hacks Applied . | . . . Relay Couplers Released . | . . . Fabnet Peak Effective % . | . . . Robots Rewired . | . . . Allies Hacked . | . . . Hacks Repelled . | . . . Allies | -11 -10 -10 -------- Run | Yrd Mat Min Total Allies . | . . . Largest Group . | . . . Highest-Rated Group . | . . . Highest-Rated Ally . | . . . Total Orders . | . . . Ally Attacks . | . . . Total Damage . | . . . Kills . | . . . Allies Corrupted . | . . . Allies Melted . | . . . Intel | -11 -10 -10 ------- Run | Yrd Mat Min Active Infowar (turns) 1598 | 13 1559 26 Seismic 1598 | 13 1559 26 Robot Analysis Total . | . . . Derelict Logs Recovered . | . . . Drone Launches . | . . . Drone Recoveries . | . . . Exploration | -11 -10 -10 ------------- Run | Yrd Mat Min Turns Passed 1725 | 118 1559 48 Spaces Moved 916 | 61 801 54 Core 47 | 4 . 43 Treads 869 | 57 801 11 Legs . | . . . Wheels . | . . . Hover . | . . . Flight . | . . . Fastest Speed 50 | 50 160 50 Average Speed 173 | 152 180 88 Slowest Speed 240 | 160 240 240 Overloaded Moves . | . . . Propulsion Burnouts . | . . . Robots Hopped . | . . . Potential Cave-ins . | . . . Cave-ins Triggered . | . . . Exploration Rate (%) 38 | 7 91 18 Regions Visited 2 Branch Regions 1 Pre-discovered Areas . | . . . Known Exits Taken 1 | . 1 . Unknown Exits Taken 1 | 1 . . Scrap Searched . | . . . Spaces Dug . | . . . Terrain Destroyed . | . . . Melee . | . . . Projectile . | . . . AOE . | . . . Terrain Rammed . | . . . Walls Destroyed . | . . . Machines Disabled . | . . . Actions | -11 -10 -10 --------- Run | Yrd Mat Min Total 996 | 75 867 54 Wait 6 | . 6 . Move 914 | 60 800 54 Hop . | . . . Pick Up 21 | 2 19 . Fast Attach 8 | 8 . . Attach . | . . . Detach 1 | 1 . . Swap 4 | . 4 . Drop 8 | . 8 . Fire 33 | 4 29 . Melee . | . . . Ram . | . . . Kick . | . . . Crush 1 | . 1 . Escape Stasis . | . . . Rewire . | . . . Trap . | . . . Miscellaneous . | . . . Route ------- -11/Scrapyard -10/Materials (discovered 4 exits: [*Mat x2] / *Min x2) -10/Mines History --------- Turn | Location | Event 17 | -11/Scrapyard | Discovered new exit (range 15) 119 | -11/Scrapyard | Entered Materials 180 | -10/Materials | Identified exit to Mines 309 | -10/Materials | Build established: Mutant 430 | -10/Materials | Discovered new exit (range 12) 713 | -10/Materials | Discovered new exit (range 4) 1678 | -10/Materials | Entered Mines 1684 | -10/Mines | Assembled infested the area 1703 | -10/Mines | Core integrity fell below 50% 1705 | -10/Mines | Released all parts (5) 1707 | -10/Mines | Core integrity fell below 20% 1726 | -10/Mines | Destroyed by D-53 Grenadier with Mini Grenade Launcher Last Messages --------------- 01431_ R-06 Scavenger collects Aluminum Leg. 01435_ R-06 Scavenger collects Heat Sink. 01438_ R-06 Scavenger collects Ion Engine. 01477_ Acquired Lgt. Armor Plating. 01533_ Acquired 13 matter. 01605_ Acquired Hrd. Light Armor Plating. 01631_ Acquired Maul. LOCATION=MINES GOAL=ESCAPE 01684_ ALERT: Infestation in the mines, dispatching Demolisher response squad. 01701_ C-45 Heavy ARC bursts open, deploying its payload. 01701_ D-53 Grenadier unfolds itself. 01704_ Seismic Detector destroyed. 01704_ Assault Rifle destroyed. 01705_ Released Assault Rifle. 01705_ Released Lgt. Ion Engine. 01705_ Released Lgt. Treads. 01705_ Released Hcp. Storage Unit. 01708_ K-01 Serf collects debris. Map ----- +----------------------------------------------------+ | ?????????????????????????????????????????? | | ?????????????????????????????????????????? | | ????????????????????????????????#????????? | | ???????????????????????????????? #???????? | | ???????????????????????????????? ##?????? | | ????????????????????????????????? ##????? | | ????????????????????????????????? ##???? | | ????????????????????????????????? #???? | | ????????????????????????????????? #???? | | ?????????????????????????????????# #????? | | ????????????????????????????????## #????? | | ???????????????a??????????????### ##???? | | ??????????????? ??????????????# #???? | | ??????????????? ??????????????# #???? | | ??????????????? #?????#????#### #???? | | ??????????????? ???? #???## # ##???? | | ?????????? ????# ???? ##??# #????? | | ?????????? ???# ???# #??# !! #????? | | ??????????? #?# ??# ???# !!*!! #????? | | ???????????? ## ## ??### ! [=! #### # | | ????????????? ?## /!! # | | ?????????????? ??# ! / ###### | | ??????????????? ???# #????? | | ????????????????# #????# ## #### ? | | ????????????????# ##???# | | ???????????????##@ ##??# | | ??????????????## ##### #### | | ??????????????# $ ##???? | | ?????????????## #????? | | ????????????## # #### #????? | | ???????????## ## #??## #????? | | ??????????## """ ## #???## ##????? | | ??????????# """d ### #????### ##?????? | | ?????????## """d #?# #???????###??????? | | ????????## ##?# #????????????????? | | ???????## ## #?? #????????????????? | | ??????## ### #??# ?????????????????? | | ??????# #?# ???#?????????????????? | | ?????# ## ##?###?????????????????????? | | ????# #######??????????????????????????? | | ????# ##????????????????????????????????? | | ????###??????????????????????????????????? | | ?????????????????????????????????????????? | | | | | | | | | | | | | | | +----------------------------------------------------+ Best States ------------- Heat Dissipation 25 Energy Generation 10 Energy Capacity 125 Matter Stores 300 Matter Capacity 300 Sight Range 16 Terrain Scan Density 10 Evasion (%) 50 Recoil Reduction 2 Item Schematics ----------------- None Robot Schematics ------------------ None Fabricated ------------ Nothing Repaired ---------- Nothing Studied --------- None Alien Tech Used ----------------- None Achievements -------------- None Challenges ------------ None Game ------ Seed PointyBattleBotcube Manual? 0 Play Time 00:08:36 Cumulative 49.6 hours Start 2026.02.05 @ 01:02:22 End 2026.02.05 @ 01:10:59 Sessions 1 Manual Loads 0 Difficulty Rogue Special Mode None Game No. 96 Rogue 96 Adventurer 0 Explorer 0 Win Type - Total 0 Types 0/0/0/0/0/0/0/0/0/0 Lore% 28 Gallery% 28 Achievement% 24 Wizard Run 0 Options --------- Layout 0 ASCII 0 Keyboard 1 Movement Arrows Keybinds 0 Fullscreen 1 Font 18/Smallcaps Map View 38x25 Zoom Use 83% Tactical HUD 1 Map Filters NONE Filters NONE Steam 1 RUN: bf0c27b7-d810-45e0-a3fa-2c7aaf790e55